bitfinex/quotes_SOLUSD_20250313
["timestamp","ask_amount","ask_price","bid_price","bid_amount"]
[1741884736673,41.82390385,123.25,123.24,0.03]
[1741884737293,49.93740385,123.25,123.24,0.03]
[1741884737878,41.82390385,123.25,123.24,0.03]
[1741884738288,113.45015499,123.26,123.24,0.03]
[1741884738575,23.17425499,123.25,123.24,0.03]
[1741884738788,0.063,123.26,123.24,0.03]
[1741884739095,0.063,123.26,123.24,23.20425499]
[1741884740095,0.063,123.26,123.25,23.45857813]
[1741884740293,0.063,123.26,123.25,37.16935528]
[1741884740898,0.063,123.26,123.25,37.31151685]
[1741884741482,0.063,123.26,123.25,105.96116571]
[1741884741683,0.063,123.3,123.29,20.28432314]
[1741884741982,0.063,123.3,123.29,102.49871056]
[1741884742179,0.063,123.3,123.29,65.47151685]
[1741884742985,0.063,123.3,123.29,377.47151685]
[1741884743186,0.063,123.3,123.29,377.32935528]
[1741884746196,0.063,123.3,123.29,8.16]
[1741884746904,0.063,123.3,123.29,45.18719371]
[1741884747283,0.063,123.3,123.29,8.16]
[1741884747823,0.063,123.3,123.29,45.47151685]
[1741884749286,0.063,123.3,123.29,357.47151685]
[1741884750180,0.063,123.3,123.29,394.49871056]
[1741884750912,0.063,123.3,123.29,151.14835942]
[1741884751209,0.063,123.33,123.32,18.933972]
[1741884751383,0.063,123.36,123.33,0.28432314]
[1741884751589,0.063,123.36,123.35,92.98835942]
[1741884751977,0.063,123.36,123.35,173.98835942]
[1741884752905,0.063,123.36,123.35,310.98835942]
[1741884753403,0.063,123.38,123.37,88.933972]
[1741884753602,0.063,123.38,123.37,295.17621355]
[1741884753788,0.063,123.38,123.37,275.31151685]
[1741884753988,0.063,123.38,123.37,587.31151685]
[1741884754490,0.063,123.38,123.37,655.96116571]
[1741884755207,0.063,123.4,123.39,105.96116571]
[1741884755402,0.063,123.4,123.39,115.43596963]
[1741884755907,0.063,123.4,123.39,196.93596963]
[1741884756108,0.063,123.42,123.41,88.933972]
[1741884756306,0.063,123.42,123.41,245.20301112]
[1741884756501,0.063,123.42,123.41,243.98835942]
[1741884757711,0.063,123.42,123.41,57.16935528]
[1741884758004,0.063,123.42,123.41,57.02719371]
[1741884758409,0.063,123.42,123.4,37.02719371]
[1741884758787,0.063,123.42,123.38,8.28]
[1741884759111,0.063,123.42,123.39,0.14216157]
[1741884759409,0.063,123.42,123.39,37.16935528]
[1741884760393,0.063,123.42,123.4,37.02719371]
[1741884760795,0.063,123.42,123.39,37.02719371]
[1741884761795,37.09019371,123.42,123.37,214.48]
[1741884762107,8.1655,123.42,123.38,37.16935528]
[1741884762595,45.19269371,123.42,123.37,214.48]
[1741884762795,45.19269371,123.42,123.37,251.50719371]
[1741884763197,8.1655,123.42,123.37,251.50719371]
[1741884763397,45.19269371,123.42,123.37,251.50719371]
[1741884763930,8.1655,123.42,123.38,37.02719371]
[1741884764109,8.1655,123.42,123.39,37.16935528]
[1741884764110,0.063,123.42,123.39,37.16935528]
[1741884764406,0.063,123.42,123.37,214.48]
[1741884764613,37.09019371,123.42,123.37,251.50719371]
[1741884764813,37.02719371,123.41,123.37,214.48]
[1741884765605,18.71264886,123.42,123.37,37.02719371]
[1741884765806,0.063,123.42,123.36,0.14216157]
[1741884766019,0.063,123.42,123.38,37.02719371]
[1741884766325,37.09019371,123.42,123.37,37.02719371]
[1741884766524,37.02719371,123.41,123.36,37.02719371]
[1741884767021,18.71264886,123.42,123.38,37.02719371]
[1741884767196,55.73984257,123.42,123.37,37.02719371]
[1741884767523,55.73984257,123.42,123.36,37.02719371]
[1741884768016,55.73984257,123.42,123.37,37.02719371]
[1741884768217,37.09019371,123.42,123.37,37.02719371]
[1741884768514,45.19279371,123.42,123.37,37.02719371]
[1741884769099,0.063,123.42,123.39,37.02719371]
[1741884769303,0.063,123.42,123.4,0.14216157]
[1741884769701,0.063,123.42,123.37,20.0]
[1741884769907,8.1657,123.42,123.38,37.02719371]
[1741884770309,45.19289371,123.42,123.37,37.02719371]
[1741884770621,45.19289371,123.42,123.36,37.16935528]
[1741884771002,8.1657,123.42,123.37,37.02719371]
[1741884771202,45.19289371,123.42,123.37,37.02719371]
[1741884771404,37.02719371,123.4,123.35,45.28719371]
[1741884771715,61.68254257,123.41,123.36,37.02719371]
[1741884772206,8.1037,123.4,123.36,37.02719371]
[1741884772411,8.1037,123.4,123.35,357.28719371]
[1741884772412,45.13089371,123.4,123.35,357.28719371]
[1741884772608,45.13089371,123.4,123.35,45.28719371]
[1741884773006,8.1037,123.4,123.36,37.02719371]
[1741884773207,69.78584257,123.41,123.36,37.02719371]
[1741884774315,69.78584257,123.41,123.34,37.16935528]
[1741884774316,37.02719371,123.4,123.34,37.16935528]
[1741884774520,37.02719371,123.39,123.34,37.16935528]
[1741884775100,53.01624886,123.41,123.35,37.02719371]
[1741884775326,69.78584257,123.41,123.35,37.02719371]
[1741884775895,69.78584257,123.41,123.36,37.02719371]
[1741884776116,32.75864886,123.41,123.36,37.02719371]
[1741884776322,14.109,123.41,123.36,37.02719371]
[1741884776621,6.0057,123.41,123.37,37.02719371]
[1741884777920,6.0057,123.41,123.38,37.02719371]
[1741884778313,14.1089,123.41,123.37,37.02719371]
[1741884779031,51.13609371,123.41,123.36,37.02719371]
[1741884779208,51.13609371,123.41,123.36,57.02719371]
[1741884779726,14.1089,123.41,123.36,57.02719371]
[1741884779900,51.13609371,123.41,123.36,57.02719371]
[1741884780099,6.0057,123.41,123.37,37.31151685]
[1741884780519,6.0057,123.41,123.38,37.02719371]
[1741884780728,0.063,123.42,123.39,37.02719371]
[1741884780910,0.063,123.42,123.39,349.02719371]
[1741884781435,0.063,123.42,123.4,37.02719371]
[1741884782138,0.063,123.42,123.39,349.02719371]
[1741884782634,0.063,123.42,123.38,45.14719371]
[1741884783204,0.063,123.42,123.39,37.02719371]
[1741884783707,0.063,123.42,123.4,37.02719371]
[1741884785535,0.063,123.42,123.4,349.02719371]
[1741884785747,0.063,123.42,123.41,37.16935528]
[1741884786216,0.063,123.42,123.41,37.31151685]
[1741884786940,0.063,123.42,123.41,75.55353913]
[1741884787312,0.063,123.42,123.41,144.20318799]
[1741884787644,0.063,123.43,123.42,0.14216157]
[1741884787817,0.063,123.43,123.42,74.33871056]
[1741884788847,0.063,123.43,123.42,37.31151685]
[1741884789639,0.063,123.43,123.42,37.16935528]
[1741884790221,0.063,123.43,123.42,37.31151685]
[1741884790417,0.063,123.43,123.42,74.33871056]
[1741884791515,0.063,123.47,123.43,0.14216157]
[1741884791717,0.063,123.47,123.45,37.02719371]
[1741884792044,37.09019371,123.47,123.43,8.16]
[1741884792833,0.063,123.47,123.43,8.16]
[1741884793026,0.063,123.47,123.43,45.18719371]
[1741884793646,0.063,123.47,123.44,37.02719371]
[1741884793948,0.063,123.47,123.46,37.16935528]
[1741884795948,0.063,123.47,123.45,37.02719371]
[1741884796153,0.063,123.47,123.44,37.02719371]
[1741884796449,0.063,123.47,123.43,37.02719371]
[1741884796646,0.063,123.47,123.44,37.02719371]
[1741884797145,0.063,123.47,123.43,37.16935528]
[1741884797523,0.063,123.47,123.44,37.02719371]
[1741884797839,0.063,123.47,123.43,37.16935528]
[1741884798429,0.063,123.47,123.44,37.02719371]
[1741884798624,0.063,123.47,123.43,37.16935528]
[1741884798821,0.063,123.47,123.44,37.02719371]
[1741884799029,0.063,123.47,123.43,37.16935528]
[1741884799225,0.063,123.47,123.43,37.02719371]
[1741884799432,0.063,123.47,123.42,312.14216157]
[1741884799433,37.02719371,123.46,123.41,45.18719371]
[1741884800143,37.09019371,123.47,123.42,37.02719371]
[1741884800445,37.02719371,123.46,123.41,37.02719371]
[1741884801027,18.64964886,123.46,123.41,37.02719371]
[1741884801629,37.09019371,123.47,123.42,37.02719371]
[1741884801935,37.09019371,123.47,123.41,37.02719371]
[1741884802141,37.02719371,123.46,123.41,37.02719371]
[1741884802327,37.02719371,123.46,123.41,349.02719371]
[1741884802641,55.73984257,123.47,123.41,37.02719371]
[1741884802845,37.02719371,123.46,123.41,37.02719371]
[1741884803152,1.568,123.44,123.4,37.02719371]
[1741884803325,6.655,123.43,123.38,37.09019371]
[1741884803646,6.655,123.43,123.39,37.02719371]
[1741884805047,51.78419371,123.43,123.38,37.09019371]
[1741884805242,14.757,123.43,123.42,0.063]
[1741884805425,6.655,123.43,123.42,0.063]
[1741884806437,14.7567,123.43,123.42,0.063]
[1741884806946,70.43354257,123.43,123.42,0.063]
[1741884807142,18.64964886,123.42,123.38,0.063]
[1741884807338,37.02719371,123.4,123.38,0.063]
[1741884807856,37.02719371,123.41,123.38,0.063]
[1741884808064,38.59969371,123.39,123.38,0.063]
[1741884810650,65.35364257,123.39,123.38,0.063]
[1741884811554,57.24934257,123.39,123.38,0.063]
[1741884812455,65.35364257,123.39,123.38,0.063]
[1741884812767,38.64964886,123.37,123.36,0.063]
[1741884812938,75.81900414,123.37,123.36,0.063]
[1741884813741,83.92460414,123.37,123.36,0.063]
[1741884813940,18.64964886,123.36,123.29,312.063]
[1741884814151,37.02719371,123.31,123.29,0.063]
[1741884814567,37.02719371,123.32,123.29,0.063]
[1741884815342,37.02719371,123.33,123.29,0.063]
[1741884816945,37.02719371,123.32,123.29,0.063]
[1741884817981,55.67684257,123.31,123.29,0.063]
[1741884818456,55.67684257,123.3,123.29,0.063]
[1741884818838,63.32274257,123.3,123.29,0.063]
[1741884820156,71.43304257,123.3,123.29,0.063]
[1741884820992,108.46023628,123.3,123.29,0.063]
[1741884821262,108.46023628,123.3,123.25,0.063]
[1741884821462,37.02719371,123.27,123.25,0.063]
[1741884821854,37.02719371,123.28,123.25,0.063]
[1741884822640,18.64964886,123.28,123.25,0.063]
[1741884822956,52.73309371,123.3,123.25,37.09019371]
[1741884823154,18.64964886,123.29,123.25,37.09019371]
[1741884824760,52.73309371,123.3,123.25,37.09019371]
[1741884824963,18.64964886,123.29,123.25,37.09019371]
[1741884825971,52.73309371,123.3,123.25,37.09019371]
[1741884826272,1.5433,123.3,123.26,37.02719371]
[1741884826447,55.67684257,123.32,123.27,37.02719371]
[1741884827547,18.64964886,123.32,123.27,37.02719371]
[1741884827747,55.67684257,123.32,123.27,37.02719371]
[1741884828469,18.64964886,123.3,123.25,335.20476768]
[1741884828966,18.64964886,123.3,123.26,23.14176768]
[1741884829270,18.64964886,123.3,123.27,0.03]
[1741884829567,23.14176768,123.32,123.27,23.17176768]
[1741884830871,18.64964886,123.32,123.27,23.17176768]
[1741884831168,41.79141654,123.32,123.27,23.17176768]
[1741884831364,41.79141654,123.32,123.27,0.03]
[1741884832054,23.14176768,123.31,123.27,0.03]
[1741884835271,26.75904886,123.32,123.27,23.17176768]
[1741884835571,49.90081654,123.32,123.27,0.03]
[1741884835874,23.14176768,123.31,123.27,0.03]
[1741884836674,23.14176768,123.3,123.27,0.03]
[1741884836851,23.14176768,123.29,123.27,0.03]
[1741884837264,31.25286768,123.29,123.27,0.03]
[1741884838381,18.64964886,123.28,123.27,0.03]
[1741884838558,41.79141654,123.28,123.27,0.03]
[1741884838759,43.30671654,123.28,123.27,0.03]
[1741884839358,9.6269,123.28,123.27,0.03]
[1741884839562,51.41831654,123.28,123.27,0.03]
[1741884840273,43.30671654,123.28,123.27,0.03]
[1741884840872,20.16494886,123.28,123.27,0.03]
[1741884841087,18.64964886,123.28,123.27,0.03]
[1741884841272,41.79141654,123.28,123.27,0.03]
[1741884841476,49.90301654,123.28,123.27,0.03]
[1741884841689,41.79141654,123.28,123.27,0.03]
[1741884842195,18.64964886,123.28,123.27,0.03]
[1741884842381,41.79141654,123.28,123.27,0.03]
[1741884843084,49.90301654,123.28,123.27,0.03]
[1741884845579,50.04517811,123.28,123.27,0.03]
[1741884848091,56.13117811,123.28,123.27,0.03]
[1741884848477,32.98941043,123.28,123.27,0.03]
[1741884848681,56.13117811,123.28,123.27,0.03]
[1741884851088,20.0,123.26,123.25,0.063]
[1741884851293,43.66013968,123.26,123.25,0.063]
[1741884851497,43.66013968,123.26,123.25,0.0001]
[1741884851879,18.79181043,123.25,123.24,0.0001]
[1741884852190,42.07573968,123.25,123.24,0.0001]
[1741884853292,100.89181043,123.24,123.23,0.0001]
[1741884853592,147.17534579,123.24,123.23,0.0001]
[1741884855372,155.28954579,123.24,123.23,0.0001]
[1741884855906,38.64964886,123.2,123.19,0.03]
[1741884856101,63.65813968,123.2,123.19,0.03]
[1741884856393,41.79141654,123.15,123.14,0.03]
[1741884857872,49.91151654,123.15,123.14,0.03]
[1741884858280,50.05367811,123.15,123.14,0.03]
[1741884859210,50.19583968,123.15,123.14,0.03]
[1741884861580,51.79263968,123.15,123.14,0.03]
[1741884862107,51.79263968,123.15,123.12,0.03]
[1741884862108,0.14216157,123.13,123.12,0.03]
[1741884862394,20.14216157,123.1,123.09,0.03]
[1741884862700,62.07573968,123.1,123.09,0.03]
[1741884863696,70.19913968,123.1,123.09,0.03]
[1741884864712,70.19913968,123.1,123.06,0.03]
[1741884864884,23.14176768,123.06,123.02,0.6929]
[1741884865514,18.64964886,123.06,123.02,0.6929]
[1741884865888,23.14176768,123.07,123.02,23.83466768]
[1741884867407,23.14176768,123.07,123.02,0.6929]
[1741884867588,23.14176768,123.07,123.02,23.83466768]
[1741884867789,96.91426157,123.11,123.04,23.14176768]
[1741884867994,23.14176768,123.09,123.04,23.14176768]
[1741884868623,23.14176768,123.09,123.03,23.14176768]
[1741884870116,23.14176768,123.09,123.04,23.14176768]
[1741884870315,41.79141654,123.1,123.05,23.14176768]
[1741884870833,23.14176768,123.1,123.05,23.14176768]
[1741884871011,0.14216157,123.13,123.07,23.14176768]
[1741884871012,41.79141654,123.13,123.07,23.14176768]
[1741884871516,41.79141654,123.13,123.08,23.14176768]
[1741884871700,49.91291654,123.13,123.07,23.14176768]
[1741884872325,41.79141654,123.13,123.08,23.14176768]
[1741884872807,41.79141654,123.13,123.07,23.14176768]
[1741884873522,41.79141654,123.13,123.08,23.14176768]
[1741884873721,41.79141654,123.13,123.07,23.14176768]
[1741884874400,23.14176768,123.12,123.07,335.14176768]
[1741884875513,23.14176768,123.14,123.09,23.14176768]
[1741884875697,24.73856768,123.15,123.09,23.14176768]
[1741884876123,23.14176768,123.14,123.09,23.14176768]
[1741884876305,23.14176768,123.13,123.08,23.14176768]
[1741884876714,23.14176768,123.14,123.08,23.14176768]
[1741884877129,0.063,123.13,123.09,23.14176768]
[1741884877439,0.063,123.13,123.08,23.14176768]
[1741884878719,41.85441654,123.13,123.08,335.14176768]
[1741884879246,23.14176768,123.12,123.07,24.36636768]
[1741884879407,41.85441654,123.13,123.08,23.14176768]
[1741884881841,23.14176768,123.12,123.07,1.2246]
[1741884882139,26.83424886,123.13,123.07,336.36636768]
[1741884882140,49.97601654,123.13,123.07,336.36636768]
[1741884882347,41.85441654,123.13,123.07,336.36636768]
[1741884882510,41.85441654,123.13,123.08,23.14176768]
[1741884882719,18.71264886,123.13,123.09,23.14176768]
[1741884882920,0.063,123.13,123.09,23.14176768]
[1741884883544,0.063,123.13,123.11,23.14176768]
[1741884884042,0.063,123.13,123.1,23.14176768]
[1741884884609,0.063,123.13,123.12,23.14176768]
[1741884884811,0.063,123.13,123.11,23.14176768]
[1741884885424,0.063,123.13,123.12,23.14176768]
[1741884887028,0.063,123.13,123.11,23.14176768]
[1741884889246,0.063,123.13,123.1,23.14176768]
[1741884889547,23.20476768,123.13,123.08,23.14176768]
[1741884889840,0.063,123.13,123.09,23.14176768]
[1741884892126,23.14176768,123.12,123.07,23.14176768]
[1741884892323,23.14176768,123.12,123.07,31.22176768]
[1741884892526,41.85441654,123.13,123.08,23.14176768]
[1741884892728,18.71264886,123.13,123.08,23.14176768]
[1741884892930,41.85441654,123.13,123.08,23.14176768]
[1741884893723,0.063,123.13,123.1,23.14176768]
[1741884894128,1.5412,123.12,123.06,0.14216157]
[1741884894332,1.5412,123.12,123.07,34.8559556]
[1741884894648,1.5412,123.12,123.08,14.8559556]
[1741884895127,1.5412,123.12,123.07,14.8559556]
[1741884895653,1.5412,123.12,123.08,14.8559556]
[1741884897461,0.063,123.13,123.1,14.8559556]
[1741884897624,0.063,123.13,123.11,14.8559556]
[1741884898143,0.063,123.13,123.06,59.70814554]
[1741884898341,0.063,123.13,123.09,14.8559556]
[1741884898739,0.063,123.13,123.11,14.8559556]
[1741884898941,0.063,123.13,123.1,14.8559556]
[1741884900335,0.063,123.13,123.09,14.8559556]
[1741884900541,0.063,123.13,123.1,14.8559556]
[1741884901452,0.063,123.13,123.11,14.8559556]
[1741884901632,0.063,123.13,123.1,14.8559556]
[1741884902155,0.063,123.13,123.12,14.8559556]
[1741884902653,0.063,123.13,123.11,14.8559556]
[1741884903562,0.063,123.13,123.1,8.22216157]
[1741884903853,0.063,123.13,123.11,14.8559556]
[1741884904055,0.063,123.13,123.12,14.8559556]
[1741884904274,0.063,123.13,123.11,14.99811717]
[1741884904458,0.063,123.13,123.11,14.8559556]
[1741884905750,0.063,123.13,123.12,14.8559556]
[1741884906654,0.063,123.13,123.11,14.8559556]
[1741884908242,0.063,123.13,123.1,8.22216157]
[1741884908452,0.063,123.13,123.11,14.8559556]
[1741884908634,0.063,123.13,123.1,8.22216157]
[1741884908635,0.063,123.13,123.1,22.9359556]
[1741884908835,0.063,123.13,123.09,14.8559556]
[1741884912470,0.063,123.13,123.1,14.8559556]
[1741884913165,0.063,123.13,123.11,14.8559556]
[1741884914075,0.063,123.13,123.12,14.8559556]
[1741884915147,0.063,123.13,123.11,14.8559556]
[1741884915358,0.063,123.13,123.12,14.8559556]
[1741884915563,0.063,123.13,123.11,14.8559556]
[1741884916477,0.063,123.13,123.1,14.8559556]
[1741884917168,0.063,123.13,123.11,14.8559556]
[1741884918267,0.063,123.13,123.1,326.8559556]
[1741884919257,0.063,123.13,123.11,14.8559556]
[1741884919574,0.063,123.13,123.12,14.8559556]
[1741884921758,0.063,123.13,123.12,15.14027874]
[1741884921956,0.063,123.13,123.12,74.56410114]
[1741884922153,0.063,123.13,123.12,14.8559556]
[1741884924956,0.063,123.13,123.11,14.8559556]
[1741884925480,0.063,123.13,123.1,14.8559556]
[1741884926986,0.063,123.13,123.12,14.8559556]
[1741884928359,0.063,123.13,123.09,8.06]
[1741884928581,0.063,123.13,123.1,14.8559556]
[1741884928786,0.063,123.13,123.09,8.06]
[1741884929082,1.6303,123.12,123.08,14.8559556]
[1741884929318,16.4862556,123.12,123.07,14.8559556]
[1741884929469,22.9717556,123.12,123.07,14.8559556]
[1741884929990,22.9717556,123.12,123.08,14.8559556]
[1741884930369,31.32886631,123.12,123.08,23.21306631]
[1741884931086,18.64964886,123.11,123.07,23.21306631]
[1741884932384,8.1158,123.12,123.08,23.21306631]
[1741884932688,31.32886631,123.12,123.07,23.21306631]
[1741884933057,8.1158,123.12,123.08,23.21306631]
[1741884937284,8.1788,123.12,123.08,23.21306631]
[1741884939484,8.1788,123.12,123.05,320.20216157]
[1741884939675,8.1788,123.12,123.08,23.21306631]
[1741884940558,8.1788,123.12,123.09,23.21306631]
[1741884940971,1.6933,123.12,123.1,23.21306631]
[1741884941174,1.6933,123.12,123.09,23.21306631]
[1741884942771,1.6933,123.12,123.1,23.21306631]
[1741884942972,1.6933,123.12,123.09,23.21306631]
[1741884946192,1.6933,123.12,123.07,312.14216157]
[1741884946493,1.6933,123.12,123.08,23.21306631]
[1741884948195,24.90636631,123.12,123.07,23.21306631]
[1741884948594,33.02846631,123.12,123.07,23.21306631]
[1741884949095,1.6933,123.12,123.08,23.21306631]
[1741884949390,1.6933,123.12,123.09,23.21306631]
[1741884950299,1.6933,123.12,123.07,14.8542514]
[1741884953092,24.6697514,123.12,123.07,14.8542514]
[1741884953589,1.6933,123.12,123.08,14.8542514]
[1741884954598,1.6933,123.12,123.09,14.8542514]
[1741884954780,1.6933,123.12,123.08,14.8542514]
[1741884955092,18.64964886,123.11,123.04,214.86]
[1741884955392,18.64964886,123.11,123.07,14.8542514]
[1741884955898,18.64964886,123.11,123.06,14.8542514]
[1741884956296,18.64964886,123.11,123.07,14.8542514]
[1741884956991,6.1881,123.1,123.05,14.8542514]
[1741884957184,14.3117,123.1,123.05,22.9142514]
[1741884957381,29.1659514,123.1,123.04,229.7142514]
[1741884957688,16.5037514,123.08,123.04,214.86]
[1741884958075,1.6495,123.08,123.04,229.7142514]
[1741884958503,16.5037514,123.08,123.04,214.86]
[1741884960080,24.6285514,123.08,123.04,214.86]
[1741884960276,14.8542514,123.07,123.04,214.86]
[1741884960582,14.8542514,123.07,123.02,14.8842514]
[1741884960583,33.50390026,123.07,123.02,14.8842514]
[1741884960990,33.50390026,123.07,123.02,0.03]
[1741884961193,47.63620026,123.05,123.02,0.03]
[1741884961805,14.8542514,123.04,123.02,0.03]
[1741884961981,35.06810026,123.03,123.02,0.03]
[1741884962296,0.14216157,123.02,123.01,0.03]
[1741884962483,40.16366183,123.02,123.01,0.03]
[1741884963080,35.28796183,123.01,123.0,0.03]
[1741884963280,43.41736183,123.01,123.0,0.03]
[1741884964302,35.28796183,123.01,123.0,0.03]
[1741884964804,43.41736183,123.01,123.0,0.03]
[1741884964992,0.14216157,123.0,122.99,0.03]
[1741884965205,33.64606183,123.0,122.99,0.03]
[1741884965387,41.77606183,123.0,122.99,0.03]
[1741884965586,33.64606183,123.0,122.99,0.03]
[1741884965794,1.6419,123.01,122.99,0.03]
[1741884965999,20.29154886,123.01,122.99,0.03]
[1741884966204,1.6419,123.01,122.99,0.03]
[1741884967694,8.06,123.05,123.0,23.25055031]
[1741884967695,8.1304,123.05,123.0,23.25055031]
[1741884968000,8.1304,123.08,123.04,23.25055031]
[1741884968188,31.38095031,123.08,123.03,23.25055031]
[1741884968594,8.1304,123.08,123.04,23.25055031]
[1741884968908,8.1304,123.08,123.05,23.25055031]
[1741884970086,8.1304,123.08,123.04,23.25055031]
[1741884970290,1.6447,123.11,123.05,23.39271188]
[1741884970584,1.6447,123.11,123.07,23.25055031]
[1741884971304,1.6447,123.11,123.08,23.25055031]
[1741884971789,1.6447,123.11,123.09,23.25055031]
[1741884971985,1.7077,123.11,123.09,23.25055031]
[1741884972299,1.7077,123.11,123.08,23.25055031]
[1741884972884,0.063,123.11,123.09,23.25055031]
[1741884973897,0.063,123.11,123.1,23.25055031]
[1741884974592,0.063,123.11,123.09,23.25055031]
[1741884976397,0.063,123.11,123.07,0.14216157]
[1741884976705,0.063,123.11,123.1,23.25055031]
[1741884977309,0.063,123.11,123.1,23.39271188]
[1741884977512,0.063,123.11,123.1,23.53487345]
[1741884977897,0.063,123.11,123.1,23.25055031]
[1741884978096,0.063,123.11,123.09,23.25055031]
[1741884978303,0.063,123.11,123.08,23.25055031]
[1741884978614,0.063,123.11,123.09,23.25055031]
[1741884978812,0.063,123.11,123.1,23.25055031]
[1741884979323,0.063,123.11,123.1,23.39271188]
[1741884979498,0.063,123.11,123.1,335.39271188]
[1741884979992,0.063,123.11,123.05,1.3146]
[1741884980188,0.063,123.11,123.06,23.39271188]
[1741884980406,0.063,123.11,123.1,23.25055031]
[1741884981296,0.063,123.11,123.09,23.25055031]
[1741884981611,0.063,123.11,123.1,23.25055031]
[1741884984204,0.063,123.11,123.09,23.25055031]
[1741884985113,0.063,123.11,123.08,23.25055031]
[1741884986595,0.063,123.11,123.1,23.25055031]
[1741884987912,0.063,123.11,123.09,23.25055031]
[1741884988699,0.063,123.11,123.08,23.39271188]
[1741884989718,0.063,123.11,123.08,23.25055031]
[1741884989910,0.063,123.11,123.07,23.25055031]
[1741884990311,0.063,123.11,123.08,23.25055031]
[1741884992425,0.063,123.11,123.09,23.25055031]
[1741884992905,0.063,123.11,123.1,23.25055031]
[1741884993101,0.063,123.11,123.09,23.25055031]
[1741884993302,0.063,123.11,123.1,23.25055031]
[1741884994329,0.063,123.11,123.1,23.39271188]
[1741884994621,0.063,123.11,123.1,31.45271188]
[1741884996622,0.063,123.11,123.1,343.45271188]
[1741884997220,0.063,123.11,123.1,31.31055031]
[1741884997526,0.063,123.11,123.1,8.06]
[1741884998526,0.063,123.11,123.1,31.31055031]
[1741885000824,0.063,123.11,123.1,31.45271188]
[1741885003931,0.063,123.11,123.1,343.45271188]
[1741885005833,0.063,123.11,123.1,31.45271188]
[1741885006029,0.063,123.11,123.1,31.59487345]
[1741885006333,0.063,123.11,123.1,100.24452231]
[1741885007311,0.063,123.12,123.11,0.14216157]
[1741885007513,0.063,123.12,123.11,23.53487345]
[1741885008742,0.063,123.12,123.11,335.39271188]
[1741885009337,0.063,123.12,123.11,23.39271188]
[1741885009642,0.063,123.12,123.08,23.25055031]
[1741885010942,8.1851,123.12,123.08,23.25055031]
[1741885011143,8.1851,123.12,123.09,0.14216157]
[1741885011372,8.1851,123.12,123.11,23.25055031]
[1741885011373,0.063,123.12,123.11,23.25055031]
[1741885011811,0.063,123.12,123.11,23.53487345]
[1741885012241,0.063,123.12,123.11,335.53487345]
[1741885012830,0.063,123.12,123.11,312.28432314]
[1741885013026,0.063,123.12,123.11,335.53487345]
[1741885014343,0.063,123.12,123.11,335.39271188]
[1741885014519,0.063,123.12,123.1,23.25055031]
[1741885014934,0.063,123.12,123.11,23.25055031]
[1741885015344,0.063,123.12,123.11,23.39271188]
[1741885015723,0.063,123.12,123.11,23.53487345]
[1741885017638,0.063,123.12,123.11,355.40232914]
[1741885017850,0.063,123.12,123.11,354.18452231]
[1741885018151,0.063,123.12,123.11,42.18452231]
[1741885018326,0.063,123.12,123.11,43.40224337]
[1741885019542,0.063,123.12,123.11,42.21452231]
[1741885020045,0.063,123.12,123.11,43.43230819]
[1741885020434,0.063,123.12,123.11,23.56487345]
[1741885020943,0.063,123.12,123.11,335.42271188]
[1741885021853,0.063,123.12,123.11,0.03]
[1741885023356,1.7166,123.12,123.11,0.03]
[1741885028443,0.063,123.12,123.11,23.28055031]
[1741885028644,0.063,123.12,123.11,23.42271188]
[1741885029241,0.063,123.12,123.11,23.28055031]
[1741885030351,0.063,123.12,123.11,23.42271188]
[1741885030857,0.063,123.12,123.11,335.42271188]
[1741885032554,0.063,123.12,123.11,312.03]
[1741885032752,0.063,123.12,123.11,0.03]
[1741885032957,23.31355031,123.12,123.11,0.03]
[1741885033761,41.96319917,123.12,123.11,0.03]
[1741885034161,50.08529917,123.12,123.11,0.03]
[1741885035353,41.96319917,123.12,123.11,0.03]
[1741885035657,0.063,123.12,123.11,0.03]